fUST/lending_fUST_20251022
["ID","MTS","AMOUNT","RATE_DAILY","PERIOD"]
[392020621,1761105042779,-364.24725454,0.00030136,7]
[392020622,1761105042788,-263.92935556,0.00030136,7]
[392020623,1761105042798,-279.98327975,0.00030136,7]
[392020624,1761105042808,-255.73843306,0.00030136,7]
[392020625,1761105042817,-438.88345363,0.00030136,7]
[392020626,1761105042826,-380.03902557,0.00030136,7]
[392020627,1761105042835,-612.00323449,0.00030136,7]
[392020628,1761105042845,-345.70979898,0.00030136,7]
[392020629,1761105042854,-193.94859614,0.00030136,7]
[392020630,1761105042864,-351.52003033,0.00030136,7]
[392020631,1761105042873,-500.0,0.00030136,7]
[392020632,1761105042883,-443.7208532,0.00030136,7]
[392020633,1761105042892,-500.0,0.00030136,7]
[392020634,1761105042901,-208.35979215,0.00030136,7]
[392020635,1761105042912,-500.0,0.00030136,7]
[392020636,1761105042922,-374.38007452,0.00030136,7]
[392020637,1761105042932,-150.63750865,0.00030136,7]
[392020638,1761105042941,-239.81925795,0.00030136,7]
[392020639,1761105042951,-495.90907792,0.00030136,7]
[392020640,1761105042961,-331.32724433,0.00030136,7]
[392020641,1761105042970,-500.0,0.00030136,7]
[392020642,1761105042980,-500.0,0.00030136,7]
[392020643,1761105042989,-163.93370302,0.00030136,7]
[392020644,1761105042999,-186.32057085,0.00030136,7]
[392020645,1761105043009,-252.10695275,0.00030136,7]
[392020646,1761105043019,-192.48645907,0.00030136,7]
[392020647,1761105043028,-335.06313695,0.00030136,7]
[392020648,1761105043037,-249.64193611,0.00030136,7]
[392020649,1761105043047,-422.00151591,0.00030136,7]
[392020650,1761105043058,-501.21275149,0.00030136,7]
[392020651,1761105043068,-312.06547316,0.00030136,7]
[392020653,1761105043078,-343.88757903,0.00030136,7]
[392020654,1761105043087,-237.38378243,0.00030136,7]
[392020656,1761105043096,-261.15607341,0.00030136,7]
[392020657,1761105043106,-420.52358588,0.00030136,7]
[392020658,1761105043115,-238.27158002,0.00030136,7]
[392020659,1761105043123,-409.6478748,0.00030136,7]
[392020660,1761105043133,-412.92574132,0.00030136,7]
[392020661,1761105043142,-528.16277677,0.00030136,7]
[392020662,1761105043152,-427.45011105,0.00030136,7]
[392020663,1761105043161,-227.77686147,0.00030136,7]
[392020664,1761105043170,-500.0,0.00030136,7]
[392020665,1761105043179,-450.13093254,0.00030136,7]
[392020666,1761105043189,-500.0,0.00030136,2]
[392020667,1761105043199,-270.20670006,0.00030136,7]
[392020668,1761105043208,-353.4328264,0.00030136,7]
[392020669,1761105043217,-500.0,0.00030136,7]
[392020670,1761105043227,-500.0,0.00030136,7]
[392020671,1761105043236,-500.0,0.00030136,7]
[392020673,1761105043246,-500.0,0.00030136,7]
[392020674,1761105043255,-500.0,0.00030136,7]
[392020675,1761105043264,-468.74319843,0.00030136,7]
[392020676,1761105043273,-218.6469731,0.00030136,7]
[392020677,1761105043283,-185.59996375,0.00030136,7]
[392020678,1761105043292,-500.0,0.00030136,7]
[392020679,1761105043301,-222.51023298,0.00030136,7]
[392020680,1761105043310,-500.0,0.00030136,7]
[392020681,1761105043320,-500.0,0.00030136,7]
[392020682,1761105043329,-350.4057224,0.00030136,7]
[392020683,1761105043338,-195.20001391,0.00030136,7]
[392020684,1761105043347,-383.4321509,0.00030136,7]
[392020685,1761105043356,-154.82739698,0.00030136,7]
[392020686,1761105043366,-795.07,0.00030136,7]
[392020687,1761105043376,-500.0,0.00030136,7]
[392020688,1761105043385,-226.2369735,0.00030136,7]
[392020689,1761105043394,-443.34804789,0.00030136,7]
[392020690,1761105043403,-505.07036697,0.00030136,7]
[392020691,1761105043414,-387.22821303,0.00030136,7]
[392020692,1761105043423,-204.85090527,0.00030136,7]
[392020693,1761105043432,-500.0,0.00030136,7]
[392020694,1761105043441,-191.99788514,0.00030136,7]
[392020695,1761105043450,-281.40735665,0.00030136,7]
[392020696,1761105043459,-383.9352096,0.00030136,7]
[392020697,1761105043469,-217.06509955,0.00030136,7]
[392020698,1761105043478,-190.22839087,0.00030136,7]
[392020699,1761105043490,-152.86857846,0.00030136,7]
[392020700,1761105043502,-476.64485801,0.00030136,7]
[392020701,1761105043515,-639.77981286,0.00030136,7]
[392020702,1761105043528,-387.37913801,0.00030136,7]
[392020703,1761105043539,-158.56603055,0.00030136,7]
[392020704,1761105043551,-396.27058211,0.00030136,7]
[392020705,1761105043562,-500.0,0.00030136,7]
[392020706,1761105043572,-228.03333693,0.00030136,7]
[392020707,1761105043584,-228.00358019,0.00030136,7]
[392020708,1761105043596,-400.87608033,0.00030136,7]
[392020709,1761105043607,-381.48414187,0.00030136,7]
[392020710,1761105043618,-401.64944066,0.00030136,7]
[392020711,1761105043629,-412.47532101,0.00030136,7]
[392020712,1761105043640,-260.29140891,0.00030136,7]
[392020713,1761105043652,-200.19375026,0.00030136,7]
[392020714,1761105043664,-517.23200074,0.00030136,7]
[392020715,1761105043676,-500.0,0.00030136,2]
[392020716,1761105043688,-1000.0,0.00030136,2]
[392020717,1761105043699,-391.5357291,0.00030136,7]
[392020718,1761105043712,-525.19208295,0.00030136,7]
[392020719,1761105043723,-312.37388576,0.00030136,7]
[392020720,1761105043734,-229.89190728,0.00030136,7]
[392020721,1761105043744,-218.47679941,0.00030136,7]
[392020722,1761105043755,-495.08913283,0.00030136,7]
[392020723,1761105043767,-169.12964423,0.00030136,7]
[392020724,1761105043778,-272.55342807,0.00030136,7]
[392020725,1761105043789,-500.0,0.00030136,7]
[392020726,1761105043800,-518.94876209,0.00030136,7]
[392020727,1761105043813,-263.51592051,0.00030136,7]
[392020728,1761105043824,-487.21162648,0.00030136,7]
[392020729,1761105043835,-500.0,0.00030136,7]
[392020730,1761105043846,-567.93807335,0.00030136,7]
[392020731,1761105043857,-210.69120597,0.00030136,7]
[392020732,1761105043866,-366.22367806,0.00030136,7]
[392020733,1761105043876,-184.24655123,0.00030136,7]
[392020734,1761105043886,-227.98918754,0.00030136,7]
[392020735,1761105043897,-401.65619612,0.00030136,7]
[392020736,1761105043907,-233.39601973,0.00030136,7]
[392020737,1761105043918,-403.08049612,0.00030136,7]
[392020738,1761105043928,-255.80286213,0.00030136,7]
[392020739,1761105043939,-294.63469225,0.00030136,7]
[392020740,1761105043950,-314.89028414,0.00030136,7]
[392020741,1761105043961,-334.51586386,0.00030136,7]
[392020742,1761105043972,-354.74688904,0.00030136,7]
[392020743,1761105043983,-424.21402797,0.00030136,7]
[392020744,1761105043994,-331.74504478,0.00030136,7]
[392020745,1761105044006,-500.0,0.00030136,7]
[392020746,1761105044018,-429.18404809,0.00030136,7]
[392020747,1761105044030,-396.10167826,0.00030136,7]
[392020748,1761105044039,-500.0,0.00030136,7]
[392020749,1761105044049,-500.0,0.00030136,7]
[392020750,1761105044064,-500.0,0.00030136,7]
[392020751,1761105044073,-500.0,0.00030136,7]
[392020752,1761105044084,-500.0,0.00030136,7]
[392020753,1761105044094,-386.35831016,0.00030136,7]
[392020754,1761105044107,-483.26443021,0.00030136,7]
[392020755,1761105044119,-378.55095098,0.00030136,7]
[392020756,1761105044130,-182.43747827,0.00030136,7]
[392020757,1761105044142,-390.72545126,0.00030136,7]
[392020758,1761105044152,-500.0,0.00030136,7]
[392020759,1761105044162,-465.2051283,0.00030136,7]
[392020760,1761105044171,-500.0,0.00030136,7]
[392020761,1761105044182,-505.66,0.00030136,7]
[392020762,1761105044194,-500.0,0.00030136,7]
[392020763,1761105044205,-500.0,0.00030136,7]
[392020764,1761105044216,-507.5189185,0.00030136,7]
[392020765,1761105044226,-280.51710492,0.00030136,7]
[392020766,1761105044237,-1819.97,0.00030136,3]
[392020767,1761105044248,-500.0,0.00030136,7]
[392020768,1761105044258,-504.7780878,0.00030136,7]
[392020769,1761105044268,-383.41896121,0.00030136,7]
[392020770,1761105044278,-242.56184791,0.00030136,7]
[392020771,1761105044288,-194.38090603,0.00030136,7]
[392020772,1761105044298,-364.05915528,0.00030136,7]
[392020773,1761105044308,-257.34485364,0.00030136,7]
[392020774,1761105044318,-154.52149754,0.00030136,7]
[392020775,1761105044328,-500.0,0.00030136,7]
[392020776,1761105044339,-468.15890753,0.00030136,7]
[392020777,1761105044349,-315.29830206,0.00030136,7]
[392020778,1761105044360,-180.49577443,0.00030136,7]
[392020779,1761105044371,-293.00888997,0.00030136,7]
[392020780,1761105044382,-368.53541687,0.00030136,7]
[392020781,1761105044393,-383.26188039,0.00030136,7]
[392020782,1761105044403,-353.46987684,0.00030136,7]
[392020783,1761105044413,-500.0,0.00030136,7]
[392020784,1761105044423,-633.30243733,0.00030136,7]
[392020785,1761105044433,-231.37211874,0.00030136,7]
[392020786,1761105044443,-373.37361793,0.00030136,7]
[392020787,1761105044454,-380.85331625,0.00030136,7]
[392020788,1761105044463,-267.83676891,0.00030136,7]
[392020789,1761105044474,-326.35246607,0.00030136,7]
[392020790,1761105044486,-500.0,0.00030136,7]
[392020791,1761105044496,-343.85267406,0.00030136,7]
[392020792,1761105044506,-581.70552696,0.00030136,7]
[392020793,1761105044516,-397.63327559,0.00030136,7]
[392020794,1761105044526,-322.29987435,0.00030136,7]
[392020795,1761105044537,-324.15732312,0.00030136,7]
[392020796,1761105044548,-771.82,0.00030136,2]
[392020797,1761105044558,-500.0,0.00030136,7]
[392020798,1761105044568,-500.0,0.00030136,7]
[392020799,1761105044578,-500.0,0.00030136,7]
[392020800,1761105044588,-361.08894123,0.00030136,7]
[392020801,1761105044598,-350.92719017,0.00030136,7]
[392020802,1761105044609,-308.25512341,0.00030136,7]
[392020803,1761105044619,-378.22950591,0.00030136,7]
[392020804,1761105044629,-500.0,0.00030136,7]
[392020805,1761105044639,-500.0,0.00030136,7]
[392020806,1761105044650,-394.23099781,0.00030136,7]
[392020807,1761105044660,-264.74661598,0.00030136,7]
[392020808,1761105044670,-283.42079311,0.00030136,7]
[392020809,1761105044681,-197.8148428,0.00030136,7]
[392020810,1761105044691,-322.89402484,0.00030136,7]
[392020811,1761105044701,-491.14265081,0.00030136,7]
[392020812,1761105044711,-392.6280856,0.00030136,7]
[392020813,1761105044722,-460.0,0.00030136,7]
[392020814,1761105044732,-339.12217062,0.00030136,7]
[392020815,1761105044743,-300.0,0.00030137,120]
[392020816,1761105044753,-226.05823675,0.00030137,120]
[392020817,1761105044764,-7958.89400858,0.00030143,2]
[392020818,1761105044774,-277.558394,0.00030153,2]
[392020819,1761105044785,-152.705577,0.00030153,2]
[392020820,1761105044795,-423.0165604,0.00030198,2]
[392020821,1761105044805,-1479.69,0.000302,2]
[392020822,1761105044816,-160.0,0.00030245,5]
[392020823,1761105044827,-964.88234122,0.00030259,2]
[392020824,1761105044837,-317.27842763,0.00030274,39]
[392020825,1761105044847,-560.0,0.00030292,2]
[392020826,1761105044859,-4926.46830559,0.00030383,2]
[392020827,1761105044869,-7958.89400858,0.000304,2]
[392020828,1761105044880,-540.0,0.0003041,7]
[392020829,1761105044890,-1958.36,0.0003041,7]
[392020830,1761105044901,-1468.77,0.0003041,7]
[392020831,1761105044911,-269.40521474,0.0003041,7]
[392020832,1761105044922,-213.38915633,0.0003041,7]
[392020833,1761105044932,-719.11,0.0003041,7]
[392020834,1761105045077,-500.0,0.0003041,2]
[392020835,1761105045089,-500.0,0.0003041,7]
[392020836,1761105045100,-833.33,0.0003041,7]
[392020837,1761105045109,-1000.0,0.0003041,2]
[392020838,1761105045119,-500.0,0.0003041,7]
[392020839,1761105045128,-500.0,0.0003041,7]
[392020840,1761105045138,-500.0,0.0003041,7]
[392020841,1761105045148,-360.68327025,0.0003041,7]
[392020842,1761105045157,-500.0,0.0003041,7]
[392020843,1761105045167,-500.0,0.0003041,7]
[392020844,1761105045176,-260.57261445,0.0003041,7]
[392020845,1761105045185,-500.0,0.0003041,7]
[392020846,1761105045194,-500.0,0.0003041,7]
[392020847,1761105045203,-500.0,0.0003041,2]
[392020848,1761105045212,-200.0,0.0003041,7]
[392020849,1761105045221,-1000.0,0.0003041,2]
[392020850,1761105045231,-500.0,0.0003041,7]
[392020851,1761105045240,-500.0,0.0003041,7]
[392020852,1761105045249,-729.31,0.0003041,7]
[392020853,1761105045259,-500.0,0.0003041,7]
[392020854,1761105045268,-1794.48,0.0003041,7]
[392020855,1761105045277,-911.33,0.0003041,7]
[392020856,1761105045286,-314.2258727,0.0003041,7]
[392020857,1761105045295,-269.16192923,0.0003041,7]
[392020858,1761105045305,-500.0,0.0003041,7]
[392020859,1761105045314,-500.0,0.0003041,7]
[392020860,1761105045323,-180.68899192,0.0003041,7]
[392020861,1761105045333,-291.45329313,0.0003041,7]
[392020862,1761105045342,-500.0,0.0003041,6]
[392020863,1761105045351,-500.0,0.0003041,7]
[392020864,1761105045361,-215.30403401,0.0003041,7]
[392020865,1761105045370,-500.0,0.0003041,7]
[392020866,1761105045379,-500.0,0.0003041,7]
[392020867,1761105045388,-3498.62,0.0003041,2]
[392020868,1761105045398,-213.39544201,0.0003041,7]
[392020869,1761105045407,-500.0,0.0003041,7]
[392020870,1761105045416,-500.0,0.0003041,7]
[392020871,1761105045425,-450.148172,0.0003041,7]
[392020872,1761105045435,-2975.47,0.0003041,2]
[392020873,1761105045445,-500.0,0.0003041,7]
[392020874,1761105045454,-597.3,0.0003041,7]
[392020875,1761105045464,-500.0,0.0003041,7]
[392020876,1761105045473,-160.67988096,0.0003041,7]
[392020877,1761105045481,-500.0,0.0003041,7]
[392020878,1761105045491,-300.35151413,0.0003041,7]
[392020879,1761105045499,-390.96741514,0.0003041,7]
[392020880,1761105045509,-500.0,0.0003041,7]
[392020881,1761105045518,-500.0,0.0003041,7]
[392020882,1761105045527,-500.0,0.0003041,2]
[392020883,1761105045536,-500.0,0.0003041,7]
[392020884,1761105045545,-582.70792291,0.0003041,7]
[392020885,1761105045555,-248.84257755,0.0003041,7]
[392020886,1761105045564,-500.0066,0.0003041,7]
[392020887,1761105045573,-500.0,0.0003041,7]
[392020888,1761105045582,-500.0,0.0003041,7]
[392020889,1761105045591,-500.0,0.0003041,7]
[392020890,1761105045600,-795.07,0.0003041,7]
[392020891,1761105045609,-444.69651408,0.0003041,7]
[392020892,1761105045618,-500.0,0.0003041,7]
[392020893,1761105045627,-500.0,0.0003041,7]
[392020894,1761105045637,-500.0,0.0003041,2]
[392020895,1761105045646,-561.61499378,0.0003041,2]
[392020896,1761105045655,-343.47414822,0.0003041,7]
[392020897,1761105045664,-273.7372459,0.0003041,7]
[392020898,1761105045674,-235.14490279,0.0003041,7]
[392020899,1761105045683,-298.40476063,0.0003041,7]
[392020900,1761105045692,-500.0,0.0003041,7]
[392020901,1761105045701,-500.0,0.0003041,7]
[392020902,1761105045710,-500.0,0.0003041,7]
[392020903,1761105045719,-168.9960293,0.0003041,7]
[392020904,1761105045728,-500.0,0.0003041,7]
[392020905,1761105045737,-500.0,0.0003041,7]
[392020906,1761105045746,-505.66,0.0003041,7]
[392020907,1761105045756,-500.0,0.0003041,7]
[392020908,1761105045765,-500.0,0.0003041,7]
[392020909,1761105045774,-1819.97,0.0003041,3]
[392020910,1761105045784,-500.0,0.0003041,7]
[392020911,1761105045793,-500.0,0.0003041,7]
[392020912,1761105045802,-500.0,0.0003041,7]
[392020913,1761105045811,-500.0,0.0003041,7]
[392020914,1761105045820,-771.82,0.0003041,2]
[392020915,1761105045830,-500.0,0.0003041,7]
[392020916,1761105045839,-500.0,0.0003041,7]
[392020917,1761105045849,-500.0,0.0003041,7]
[392020918,1761105045860,-193.14200293,0.0003041,7]
[392020919,1761105045869,-500.0,0.00030423,15]
[392020920,1761105045879,-7121.86,0.000305,7]
[392020921,1761105045888,-7958.89400858,0.00030674,2]
[392020922,1761105045897,-1958.36,0.00030684,7]
[392020923,1761105045907,-1468.77,0.00030684,7]
[392020924,1761105045920,-719.11,0.00030684,7]
[392020925,1761105045929,-500.0,0.00030684,2]
[392020926,1761105045939,-500.0,0.00030684,7]
[392020927,1761105045947,-833.33,0.00030684,7]
[392020928,1761105045956,-1000.0,0.00030684,2]
[392020929,1761105045965,-552.86611868,0.00030684,7]
[392020930,1761105045975,-500.0,0.00030684,7]
[392020931,1761105045984,-500.0,0.00030684,7]
[392020932,1761105045994,-500.0,0.00030684,7]
[392020933,1761105046003,-500.0,0.00030684,7]
[392020934,1761105046012,-500.0,0.00030684,7]
[392020935,1761105046021,-500.0,0.00030684,7]
[392020936,1761105046031,-500.0,0.00030684,2]
[392020937,1761105046043,-200.0,0.00030684,7]
[392020938,1761105046052,-1000.0,0.00030684,2]
[392020940,1761105046068,-500.0,0.00030684,7]
[392020941,1761105046077,-500.0,0.00030684,7]
[392020942,1761105046086,-729.31,0.00030684,7]
[392020943,1761105046096,-500.0,0.00030684,7]
[392020944,1761105046106,-1794.48,0.00030684,7]
[392020945,1761105046115,-911.33,0.00030684,7]
[392020946,1761105046124,-500.0,0.00030684,7]
[392020947,1761105046136,-500.0,0.00030684,7]
[392020948,1761105046146,-500.0,0.00030684,6]
[392020949,1761105046155,-500.0,0.00030684,7]
[392020950,1761105046164,-501.10051469,0.00030684,7]
[392020951,1761105046173,-500.0,0.00030684,7]
[392020952,1761105046182,-3498.62,0.00030684,2]
[392020953,1761105046191,-500.0,0.00030684,7]
[392020954,1761105046200,-500.0,0.00030684,7]
[392020955,1761105046208,-2975.47,0.00030684,2]
[392020956,1761105046218,-500.0,0.00030684,7]
[392020957,1761105046228,-597.3,0.00030684,7]
[392020958,1761105046237,-500.0,0.00030684,7]
[392020959,1761105046246,-500.0,0.00030684,7]
[392020960,1761105046255,-500.0,0.00030684,7]
[392020961,1761105046264,-500.0,0.00030684,7]
[392020962,1761105046273,-500.0,0.00030684,2]
[392020963,1761105046282,-500.0,0.00030684,7]
[392020964,1761105046292,-594.53349554,0.00030684,7]
[392020965,1761105046300,-500.0,0.00030684,7]
[392020966,1761105046310,-500.0,0.00030684,7]
[392020967,1761105046319,-795.07,0.00030684,7]
[392020968,1761105046328,-500.0,0.00030684,7]
[392020969,1761105046338,-500.0,0.00030684,7]
[392020970,1761105046347,-500.0,0.00030684,2]
[392020971,1761105046356,-500.0,0.00030684,7]
[392020972,1761105046365,-500.0,0.00030684,7]
[392020973,1761105046374,-500.0,0.00030684,7]
[392020974,1761105046383,-500.0,0.00030684,7]
[392020975,1761105046393,-505.66,0.00030684,7]
[392020976,1761105046402,-500.0,0.00030684,7]
[392020977,1761105046411,-500.0,0.00030684,7]
[392020978,1761105046419,-500.0,0.00030684,7]
[392020979,1761105046428,-1819.97,0.00030684,3]
[392020980,1761105046437,-500.0,0.00030684,7]
[392020981,1761105046446,-500.0,0.00030684,7]
[392020982,1761105046455,-500.0,0.00030684,7]
[392020983,1761105046464,-771.82,0.00030684,2]
[392020984,1761105046473,-258.79007502,0.00030684,7]
[392020985,1761105046482,-500.0,0.00030684,7]
[392020986,1761105046491,-500.0,0.00030684,7]
[392020987,1761105046500,-500.0,0.00030707,7]
[392020988,1761105046509,-660.0,0.0003084,2]
[392020989,1761105046518,-7958.89400858,0.00030948,2]
[392020990,1761105046528,-1958.36,0.00030958,7]
[392020991,1761105046537,-1468.77,0.00030958,7]
[392020992,1761105046546,-719.11,0.00030958,7]
[392020993,1761105046555,-500.0,0.00030958,2]
[392020994,1761105046564,-500.0,0.00030958,7]
[392020995,1761105046573,-833.33,0.00030958,7]
[392020996,1761105046582,-1000.0,0.00030958,2]
[392020997,1761105046591,-500.0,0.00030958,7]
[392020998,1761105046600,-500.0,0.00030958,7]
[392020999,1761105046609,-500.0,0.00030958,7]
[392021000,1761105046619,-500.0,0.00030958,7]
[392021001,1761105046629,-500.0,0.00030958,7]
[392021002,1761105046638,-500.0,0.00030958,7]
[392021003,1761105046647,-500.0,0.00030958,2]
[392021004,1761105046656,-200.0,0.00030958,7]
[392021005,1761105046665,-1000.0,0.00030958,2]
[392021006,1761105046674,-500.0,0.00030958,7]
[392021007,1761105046684,-500.0,0.00030958,7]
[392021008,1761105046693,-729.31,0.00030958,7]
[392021009,1761105046702,-500.0,0.00030958,7]
[392021010,1761105046712,-1794.48,0.00030958,7]
[392021011,1761105046721,-911.33,0.00030958,7]
[392021012,1761105046730,-500.0,0.00030958,7]
[392021013,1761105046739,-500.0,0.00030958,7]
[392021014,1761105046748,-500.0,0.00030958,6]
[392021015,1761105046758,-500.0,0.00030958,7]
[392021016,1761105046768,-500.0,0.00030958,7]
[392021017,1761105046777,-3498.62,0.00030958,2]
[392021018,1761105046787,-500.0,0.00030958,7]
[392021019,1761105046796,-500.0,0.00030958,7]
[392021020,1761105046806,-1352.43810101,0.00030958,2]
[392021021,1761105046950,-1872.21,0.00030126,10]
[392021022,1761105046959,-1623.03189899,0.00030958,2]
[392021023,1761105046969,-500.0,0.00030958,7]
[392021024,1761105046978,-597.3,0.00030958,7]
[392021025,1761105046987,-500.0,0.00030958,7]
[392021026,1761105046997,-500.0,0.00030958,7]
[392021027,1761105047006,-500.0,0.00030958,7]
[392021028,1761105047016,-500.0,0.00030958,7]
[392021029,1761105047025,-500.0,0.00030958,2]
[392021031,1761105047034,-500.0,0.00030958,7]
[392021032,1761105047043,-500.0,0.00030958,7]
[392021033,1761105047052,-500.0,0.00030958,7]
[392021034,1761105047067,-795.07,0.00030958,7]
[392021035,1761105047076,-500.0,0.00030958,7]
[392021036,1761105047086,-500.0,0.00030958,7]
[392021037,1761105047095,-500.0,0.00030958,2]
[392021038,1761105047104,-500.0,0.00030958,7]
[392021039,1761105047113,-210.26057013,0.00030958,7]
[392021040,1761105047122,-500.0,0.00030958,7]
[392021041,1761105047132,-500.0,0.00030958,7]
[392021042,1761105047142,-505.66,0.00030958,7]
[392021043,1761105047151,-500.0,0.00030958,7]
[392021044,1761105047161,-500.0,0.00030958,7]
[392021045,1761105047170,-523.21989355,0.00030958,7]
[392021046,1761105047179,-1819.97,0.00030958,3]
[392021047,1761105047189,-500.0,0.00030958,7]
[392021048,1761105047198,-500.0,0.00030958,7]
[392021049,1761105047207,-500.0,0.00030958,7]
[392021050,1761105047216,-771.82,0.00030958,2]
[392021051,1761105047225,-500.0,0.00030958,7]
[392021052,1761105047234,-500.0,0.00030958,7]
[392021053,1761105047244,-823.0,0.00030961,2]
[392021054,1761105047253,-500.0,0.00030971,15]
[392021055,1761105047262,-983.0,0.00031031,2]
[392021056,1761105047272,-632.0,0.00031031,2]
[392021057,1761105047281,-2164.0,0.00031031,2]
[392021058,1761105047290,-150.0,0.00031031,2]
[392021059,1761105047299,-411.0,0.00031031,2]
[392021060,1761105047308,-459.62376274,0.00031198,2]
[392021061,1761105047317,-277.558394,0.00031201,7]
[392021063,1761105047326,-152.705577,0.00031201,7]
[392021065,1761105047335,-7194.51548798,0.00031222,2]
[392021066,1761105047346,-764.3785206,0.00031222,2]
[392021067,1761105047355,-235.6214794,0.00031231,2]
[392021068,1761105047418,-591.23211326,0.00024296,2]
[392021069,1761105047427,-150.0,0.0002526,2]
[392021070,1761105047437,-429.892,0.00028031,2]
[392021071,1761105047446,-337.46184763,0.00030136,7]
[392021072,1761105047455,-411.0,0.00031031,2]
[392021073,1761105047464,-183.6185206,0.00031231,2]
[392021074,1761105047474,-1958.36,0.00031232,7]
[392021075,1761105047483,-1468.77,0.00031232,7]
[392021076,1761105047492,-719.11,0.00031232,7]
[392021077,1761105047501,-500.0,0.00031232,2]
[392021078,1761105047510,-500.0,0.00031232,7]
[392021079,1761105047520,-833.33,0.00031232,7]
[392021080,1761105047529,-1000.0,0.00031232,2]
[392021081,1761105047538,-500.0,0.00031232,7]
[392021082,1761105047547,-500.0,0.00031232,7]
[392021083,1761105047556,-500.0,0.00031232,7]
[392021084,1761105047565,-500.0,0.00031232,7]
[392021085,1761105047576,-500.0,0.00031232,7]
[392021086,1761105047585,-500.0,0.00031232,7]
[392021087,1761105047594,-500.0,0.00031232,2]
[392021088,1761105047604,-200.0,0.00031232,7]
[392021089,1761105047613,-1000.0,0.00031232,2]
[392021090,1761105047623,-508.70422129,0.00031232,7]
[392021091,1761105047632,-500.0,0.00031232,7]
[392021092,1761105047641,-729.31,0.00031232,7]
[392021093,1761105047650,-499.29389103,0.00031232,7]
[392021094,1761105047659,-1794.48,0.00031232,7]
[392021095,1761105047669,-643.082143,0.00031232,7]
[392021097,1761105049702,-484.418692,0.00027856,2]
[392021098,1761105049712,-591.23211325,0.00029431,2]
[392021099,1761105049721,-268.247857,0.00031232,7]
[392021100,1761105049731,-505.86030694,0.00031232,7]
[392021101,1761105049741,-500.0,0.00031232,7]
[392021102,1761105049751,-500.0,0.00031232,6]
[392021103,1761105049760,-500.0,0.00031232,7]
[392021104,1761105049769,-500.0,0.00031232,7]
[392021105,1761105049779,-2707.66626924,0.00031232,2]
[392021109,1761105125886,150.0,0.00019563,2]
[392021110,1761105126302,150.0,0.00020494,2]
[392021111,1761105126755,150.0,0.00021426,2]
[392021112,1761105127157,152.25,0.00022357,2]
[392021113,1761105127590,190.31,0.00023289,2]
[392021115,1761105153760,3830.18549579,0.00023883,2]
[392021116,1761105153782,1096.2828098,0.00023883,2]
[392021117,1761105199329,150.0,0.00019254,2]
[392021118,1761105199772,150.0,0.00020171,2]
[392021119,1761105200195,150.0,0.00021088,2]
[392021120,1761105200692,150.0,0.00022005,2]
[392021121,1761105201211,178.38,0.00022922,2]
[392021122,1761105201655,214.06,0.00023839,2]
[392021123,1761105235654,1429.46,0.0002398,10]
[392021124,1761105236279,4500.0,0.00034864,31]
[392021125,1761105242718,300.0,0.00023989,2]
[392021126,1761105246798,1191.21,0.0002398,10]
[392021127,1761105258467,992.68,0.0002398,10]
[392021128,1761105268836,827.23,0.0002398,10]
[392021129,1761105270574,150.0,0.00019173,2]
[392021130,1761105270979,150.0,0.00020086,2]
[392021131,1761105271387,150.0,0.00020999,2]
[392021132,1761105271788,150.0,0.00021912,2]